lending/lending_fUSD_20250425
["ID","MTS","AMOUNT","RATE_DAILY","PERIOD"]
[358925680,1745545930760,-500.0,0.00050958,30]
[358925681,1745545930814,-561.61,0.00050958,30]
[358925682,1745545930866,-950.46,0.00050958,30]
[358925683,1745545930918,-500.0,0.00050958,30]
[358925684,1745545930969,-1212.18,0.00050958,30]
[358925685,1745545931021,-1343.3,0.00050958,30]
[358925686,1745545931073,-571.58,0.00050958,30]
[358925687,1745545931125,-855.98,0.00050958,30]
[358925688,1745545931175,-603.73,0.00050958,30]
[358925689,1745545931224,-2120.78,0.00050958,30]
[358925690,1745545931274,-1895.22,0.00050958,30]
[358925691,1745545931325,-500.0,0.00050958,30]
[358925692,1745545931375,-1806.09,0.00050958,30]
[358925693,1745545931426,-500.0,0.00050958,30]
[358925694,1745545931478,-530.66,0.00050958,30]
[358925695,1745545931529,-500.0,0.00050958,30]
[358925696,1745545931578,-1185.38,0.00050958,30]
[358925697,1745545931629,-191.37256164,0.00050958,30]
[358925698,1745545931682,-4344.84,0.00050958,30]
[358925699,1745545931733,-289.833937,0.00050958,120]
[358925700,1745545931785,-1235.46,0.00050958,30]
[358925701,1745545931838,-500.80878894,0.00050958,30]
[358925702,1745545931890,-718.37,0.00050958,30]
[358925703,1745545931941,-681.27,0.00050958,30]
[358925704,1745545931993,-547.91,0.00050958,30]
[358925705,1745545932044,-536.61,0.00050958,30]
[358925706,1745545932095,-1064.4,0.00050958,30]
[358925707,1745545932148,-959.99,0.00050958,30]
[358925708,1745545932203,-956.25,0.00050958,30]
[358925709,1745545932256,-606.43,0.00050958,30]
[358925710,1745545932308,-4110.61,0.00050958,30]
[358925711,1745545932359,-755.51,0.00050958,30]
[358925712,1745545932411,-500.0,0.00050958,30]
[358925713,1745545932635,-1699.47,0.00050958,30]
[358925714,1745545932690,-751.49,0.00050958,30]
[358925715,1745545932745,-557.16,0.00050958,30]
[358925716,1745545932800,-2518.36,0.00050958,30]
[358925717,1745545932853,-257.001103,0.00050958,120]
[358925718,1745545932908,-257.001103,0.00050958,120]
[358925719,1745545932963,-1672.29,0.00050958,30]
[358925720,1745545933016,-500.0,0.00050958,30]
[358925721,1745545933068,-1749.57,0.00050958,30]
[358925722,1745545933122,-500.0,0.00050958,30]
[358925723,1745545933176,-637.35,0.00050958,30]
[358925724,1745545933228,-500.0,0.00050958,30]
[358925725,1745545933282,-1031.46,0.00050958,30]
[358925726,1745545933336,-1188.42,0.00050958,30]
[358925727,1745545933392,-1886.1,0.00050958,30]
[358925728,1745545933446,-500.0,0.00050958,30]
[358925729,1745545933500,-565.55,0.00050958,30]
[358925730,1745545933555,-1760.17,0.00050958,30]
[358925731,1745545933610,-500.0,0.00050958,30]
[358925732,1745545933664,-583.6,0.00050958,30]
[358925733,1745545933719,-1331.75,0.00050958,30]
[358925734,1745545933773,-259.7,0.00050958,30]
[358925735,1745545933828,-1291.79,0.00050958,30]
[358925736,1745545933881,-1098.22,0.00050958,30]
[358925737,1745545933934,-7163.15,0.00050958,30]
[358925738,1745545933988,-887.54,0.00050958,30]
[358925739,1745545934042,-1248.48,0.00050958,30]
[358925740,1745545934096,-500.0,0.00050958,30]
[358925741,1745545934150,-1651.06,0.00050958,30]
[358925742,1745545934204,-508.52,0.00050958,30]
[358925743,1745545934257,-2239.84,0.00050958,30]
[358925744,1745545934311,-864.33,0.00050958,30]
[358925745,1745545934363,-632.89,0.00050958,30]
[358925746,1745545934416,-1001.68,0.00050958,30]
[358925747,1745545934470,-505.78,0.00050958,30]
[358925748,1745545934526,-1483.77,0.00050958,30]
[358925749,1745545934579,-500.0,0.00050958,30]
[358925750,1745545934633,-1236.74,0.00050958,30]
[358925751,1745545934686,-547.04,0.00050958,30]
[358925752,1745545934739,-553.53952344,0.00050958,30]
[358925753,1745545934793,-551.27,0.00050958,30]
[358925754,1745545934846,-782.79,0.00050958,30]
[358925755,1745545934898,-500.0,0.00050958,30]
[358925756,1745545934951,-174.978645,0.00050958,120]
[358925757,1745545935004,-500.0,0.00050958,30]
[358925758,1745545935057,-1416.53,0.00050958,30]
[358925759,1745545935110,-894.51,0.00050958,30]
[358925760,1745545935166,-151.0,0.00050958,120]
[358925761,1745545935218,-500.0,0.00050958,30]
[358925762,1745545935269,-151.0,0.00050958,120]
[358925763,1745545935321,-1380.06,0.00050958,30]
[358925764,1745545935373,-1109.29,0.00050958,30]
[358925765,1745545935427,-500.0,0.00050958,30]
[358925766,1745545935479,-982.48,0.00050958,30]
[358925767,1745545935530,-1800.8,0.00050958,30]
[358925768,1745545935581,-612.25,0.00050958,30]
[358925769,1745545935634,-884.99,0.00050958,30]
[358925770,1745545935687,-665.85,0.00050958,30]
[358925771,1745545935739,-695.17,0.00050958,30]
[358925772,1745545935792,-1088.74,0.00050958,30]
[358925773,1745545935842,-734.7,0.00050958,30]
[358925774,1745545935896,-1916.97,0.00050958,30]
[358925775,1745545935948,-596.84,0.00050958,30]
[358925776,1745545936000,-509.35,0.00050958,30]
[358925777,1745545936053,-334.587422,0.00050958,120]
[358925778,1745545936105,-500.0,0.00050958,30]
[358925779,1745545936161,-2215.94,0.00050958,30]
[358925780,1745545936214,-556.38,0.00050958,30]
[358925781,1745545936266,-500.0,0.00050958,30]
[358925782,1745545936320,-697.76,0.00050958,30]
[358925783,1745545936372,-334.587422,0.00050958,120]
[358925784,1745545936426,-4287.81,0.00050958,30]
[358925785,1745545936479,-682.59,0.00050958,30]
[358925786,1745545936532,-737.75,0.00050958,30]
[358925787,1745545936583,-175.498221,0.00050958,60]
[358925788,1745545936634,-515.03,0.00050958,30]
[358925789,1745545936686,-765.05,0.00050958,30]
[358925790,1745545936741,-1045.74,0.00050958,30]
[358925791,1745545936793,-175.498221,0.00050958,60]
[358925792,1745545936844,-520.26,0.00050958,30]
[358925793,1745545936893,-500.0,0.00050958,30]
[358925794,1745545936944,-500.0,0.00050958,30]
[358925795,1745545936997,-682.45,0.00050958,30]
[358925796,1745545937050,-1909.5,0.00050958,30]
[358925797,1745545937101,-574.53,0.00050958,30]
[358925798,1745545937151,-695.21,0.00050958,30]
[358925799,1745545937203,-500.0,0.00050958,30]
[358925800,1745545937257,-500.0,0.00050958,30]
[358925801,1745545937309,-595.07,0.00050958,30]
[358925802,1745545937377,-2006.28,0.00050958,30]
[358925803,1745545937430,-171.668115,0.00050958,120]
[358925804,1745545937488,-696.79,0.00050958,30]
[358925805,1745545937542,-1703.57,0.00050958,30]
[358925806,1745545937598,-536.68,0.00050958,30]
[358925807,1745545937656,-171.668115,0.00050958,120]
[358925808,1745545937708,-661.83,0.00050958,30]
[358925809,1745545937762,-671.65,0.00050958,30]
[358925810,1745545937817,-990.25,0.00050958,30]
[358925811,1745545937872,-1139.46,0.00050958,30]
[358925812,1745545937927,-1291.84,0.00050958,30]
[358925813,1745545937991,-1491.54,0.00050958,30]
[358925814,1745545938049,-151.0,0.00050958,120]
[358925815,1745545938106,-1377.9,0.00050958,30]
[358925816,1745545938160,-1021.1,0.00050958,30]
[358925817,1745545938215,-500.0,0.00050958,30]
[358925818,1745545938488,-1148.56,0.00050958,30]
[358925819,1745545938551,-944.01,0.00050958,30]
[358925820,1745545938607,-1758.33,0.00050958,30]
[358925821,1745545938665,-1342.47,0.00050958,30]
[358925822,1745545938723,-364.96967347,0.00050958,30]
[358925823,1745545938781,-311.0,0.00051,120]
[358925824,1745545938837,-1400.0,0.00051,30]
[358925825,1745545938893,-1800.0,0.00051,52]
[358925826,1745545938949,-200.0,0.00051,93]
[358925827,1745545939006,-2000.0,0.00051,120]
[358925828,1745545939062,-5000.0,0.00051,120]
[358925829,1745545939118,-5000.0,0.00051,120]
[358925830,1745545939179,-1048.58226988,0.00051088,30]
[358925831,1745545939238,-572.21,0.00051232,30]
[358925832,1745545939294,-500.0,0.00051232,30]
[358925833,1745545939354,-576.95,0.00051232,30]
[358925834,1745545939410,-500.0,0.00051232,30]
[358925835,1745545939468,-500.0,0.00051232,30]
[358925836,1745545939521,-500.0,0.00051232,30]
[358925837,1745545939581,-500.0,0.00051232,30]
[358925838,1745545939638,-339.80904252,0.00051232,30]
[358925839,1745545939693,-151.0,0.00051232,120]
[358925840,1745545939748,-982.6,0.00051232,30]
[358925841,1745545939802,-151.0,0.00051232,120]
[358925842,1745545939857,-730.82,0.00051232,30]
[358925843,1745545939914,-1137.61,0.00051232,30]
[358925844,1745545939969,-500.0,0.00051232,30]
[358925845,1745545940024,-500.0,0.00051232,30]
[358925846,1745545940079,-1311.98,0.00051232,30]
[358925847,1745545940136,-500.0,0.00051232,30]
[358925848,1745545940197,-500.0,0.00051232,30]
[358925849,1745545940253,-500.0,0.00051232,30]
[358925850,1745545940309,-1055.72,0.00051232,30]
[358925851,1745545940363,-500.0,0.00051232,30]
[358925852,1745545940423,-500.0,0.00051232,30]
[358925853,1745545940480,-1396.8,0.00051232,30]
[358925854,1745545940534,-503.83,0.00051232,30]
[358925855,1745545940588,-500.0,0.00051232,30]
[358925856,1745545940647,-871.91,0.00051232,30]
[358925857,1745545940701,-1269.73,0.00051232,30]
[358925858,1745545940757,-1618.3,0.00051232,30]
[358925859,1745545940812,-202.11555639,0.00051232,30]
[358925860,1745545940867,-1638.07,0.00051232,30]
[358925861,1745545940920,-703.28,0.00051232,30]
[358925862,1745545940973,-1425.46,0.00051232,30]
[358925863,1745545941027,-638.66,0.00051232,30]
[358925864,1745545941082,-1729.94,0.00051232,30]
[358925865,1745545941137,-500.0,0.00051232,30]
[358925866,1745545941193,-561.61,0.00051232,30]
[358925867,1745545941249,-950.46,0.00051232,30]
[358925868,1745545941302,-500.0,0.00051232,30]
[358925869,1745545941353,-1212.18,0.00051232,30]
[358925870,1745545941405,-1343.3,0.00051232,30]
[358925871,1745545941458,-571.58,0.00051232,30]
[358925872,1745545941509,-855.98,0.00051232,30]
[358925873,1745545941561,-603.73,0.00051232,30]
[358925874,1745545941613,-2120.78,0.00051232,30]
[358925875,1745545941681,-1895.22,0.00051232,30]
[358925876,1745545941736,-500.0,0.00051232,30]
[358925877,1745545941792,-1806.09,0.00051232,30]
[358925878,1745545941848,-500.0,0.00051232,30]
[358925879,1745545941902,-530.66,0.00051232,30]
[358925880,1745545941961,-500.0,0.00051232,30]
[358925881,1745545942013,-1185.38,0.00051232,30]
[358925882,1745545942066,-4344.84,0.00051232,30]
[358925883,1745545942121,-1235.46,0.00051232,30]
[358925884,1745545942175,-718.37,0.00051232,30]
[358925885,1745545942228,-681.27,0.00051232,30]
[358925886,1745545942281,-547.91,0.00051232,30]
[358925887,1745545942333,-230.04,0.00051232,30]
[358925888,1745545942385,-536.61,0.00051232,30]
[358925889,1745545942438,-1064.4,0.00051232,30]
[358925890,1745545942492,-959.99,0.00051232,30]
[358925891,1745545942545,-956.25,0.00051232,30]
[358925892,1745545942599,-606.43,0.00051232,30]
[358925893,1745545942658,-4110.61,0.00051232,30]
[358925894,1745545942713,-755.51,0.00051232,30]
[358925895,1745545942767,-500.0,0.00051232,30]
[358925896,1745545942822,-1699.47,0.00051232,30]
[358925897,1745545942877,-751.49,0.00051232,30]
[358925898,1745545942932,-557.16,0.00051232,30]
[358925899,1745545942988,-2518.36,0.00051232,30]
[358925900,1745545943042,-1672.29,0.00051232,30]
[358925901,1745545943098,-500.0,0.00051232,30]
[358925902,1745545943156,-151.0,0.00051232,120]
[358925903,1745545943214,-1749.57,0.00051232,30]
[358925904,1745545943271,-500.0,0.00051232,30]
[358925905,1745545943328,-637.35,0.00051232,30]
[358925906,1745545943388,-500.0,0.00051232,30]
[358925907,1745545943445,-1031.46,0.00051232,30]
[358925908,1745545943504,-1188.42,0.00051232,30]
[358925909,1745545943562,-1886.1,0.00051232,30]
[358925910,1745545943620,-500.0,0.00051232,30]
[358925911,1745545943680,-565.55,0.00051232,30]
[358925912,1745545943741,-1760.17,0.00051232,30]
[358925913,1745545943800,-500.0,0.00051232,30]
[358925914,1745545943858,-151.0,0.00051232,120]
[358925915,1745545943914,-583.6,0.00051232,30]
[358925916,1745545943970,-1331.75,0.00051232,30]
[358925917,1745545944025,-259.7,0.00051232,30]
[358925918,1745545944081,-1291.79,0.00051232,30]
[358925919,1745545944139,-1098.22,0.00051232,30]
[358925920,1745545944196,-7163.15,0.00051232,30]
[358925921,1745545944252,-887.54,0.00051232,30]
[358925922,1745545944309,-1248.48,0.00051232,30]
[358925923,1745545944636,-500.0,0.00051232,30]
[358925924,1745545944692,-1651.06,0.00051232,30]
[358925925,1745545944746,-508.52,0.00051232,30]
[358925926,1745545944800,-2239.84,0.00051232,30]
[358925927,1745545944852,-864.33,0.00051232,30]
[358925928,1745545944903,-632.89,0.00051232,30]
[358925929,1745545944956,-1001.68,0.00051232,30]
[358925930,1745545945010,-505.78,0.00051232,30]
[358925931,1745545945063,-1483.77,0.00051232,30]
[358925932,1745545945115,-500.0,0.00051232,30]
[358925933,1745545945165,-1236.74,0.00051232,30]
[358925934,1745545945216,-547.04,0.00051232,30]
[358925935,1745545945270,-551.27,0.00051232,30]
[358925936,1745545945321,-782.79,0.00051232,30]
[358925937,1745545945371,-525.08527753,0.00051232,30]
[358925938,1745545945423,-500.0,0.00051232,30]
[358925939,1745545945477,-1416.53,0.00051232,30]
[358925940,1745545945532,-894.51,0.00051232,30]
[358925941,1745545945585,-500.0,0.00051232,30]
[358925942,1745545945635,-1380.06,0.00051232,30]
[358925943,1745545945684,-1109.29,0.00051232,30]
[358925944,1745545945735,-500.0,0.00051232,30]
[358925945,1745545945786,-982.48,0.00051232,30]
[358925946,1745545945837,-1800.8,0.00051232,30]
[358925947,1745545945900,-612.25,0.00051232,30]
[358925948,1745545945966,-884.99,0.00051232,30]
[358925949,1745545946029,-665.85,0.00051232,30]
[358925950,1745545946085,-695.17,0.00051232,30]
[358925951,1745545946144,-1088.74,0.00051232,30]
[358925952,1745545946198,-734.7,0.00051232,30]
[358925953,1745545946254,-1916.97,0.00051232,30]
[358925954,1745545946306,-596.84,0.00051232,30]
[358925955,1745545946356,-509.35,0.00051232,30]
[358925956,1745545946410,-500.0,0.00051232,30]
[358925957,1745545946463,-2215.94,0.00051232,30]
[358925958,1745545946520,-556.38,0.00051232,30]
[358925959,1745545946574,-500.0,0.00051232,30]
[358925960,1745545946627,-697.76,0.00051232,30]
[358925961,1745545946680,-4287.81,0.00051232,30]
[358925962,1745545946729,-682.59,0.00051232,30]
[358925963,1745545946780,-737.75,0.00051232,30]
[358925964,1745545946829,-515.03,0.00051232,30]
[358925965,1745545946877,-1045.74,0.00051232,30]
[358925966,1745545946926,-765.05,0.00051232,30]
[358925967,1745545946973,-520.26,0.00051232,30]
[358925968,1745545947020,-500.0,0.00051232,30]
[358925969,1745545947068,-500.0,0.00051232,30]
[358925970,1745545947117,-682.45,0.00051232,30]
[358925971,1745545947169,-1909.5,0.00051232,30]
[358925972,1745545947219,-574.53,0.00051232,30]
[358925973,1745545947266,-695.21,0.00051232,30]
[358925974,1745545947313,-500.0,0.00051232,30]
[358925975,1745545947363,-500.0,0.00051232,30]
[358925976,1745545947408,-595.07,0.00051232,30]
[358925977,1745545947456,-2006.28,0.00051232,30]
[358925978,1745545947507,-696.79,0.00051232,30]
[358925979,1745545947558,-1703.57,0.00051232,30]
[358925980,1745545947607,-536.68,0.00051232,30]
[358925981,1745545947652,-661.83,0.00051232,30]
[358925982,1745545947698,-671.65,0.00051232,30]
[358925983,1745545947748,-990.25,0.00051232,30]
[358925984,1745545947802,-1139.46,0.00051232,30]
[358925985,1745545947855,-1291.84,0.00051232,30]
[358925986,1745545947905,-1491.54,0.00051232,30]
[358925987,1745545947953,-1377.9,0.00051232,30]
[358925988,1745545948002,-1021.1,0.00051232,30]
[358925989,1745545948050,-451.75156823,0.00051232,30]
[358925990,1745545948097,-1148.56,0.00051232,30]
[358925991,1745545948148,-944.01,0.00051232,30]
[358925992,1745545948199,-1758.33,0.00051232,30]
[358925993,1745545948249,-1342.47,0.00051232,30]
[358925994,1745545948297,-202.64,0.00051248,30]
[358925995,1745545948346,-151.0,0.0005125,120]
[358925996,1745545948397,-151.0,0.0005125,120]
[358925997,1745545948449,-151.0,0.00051495,120]
[358925998,1745545948497,-151.0,0.00051495,120]
[358925999,1745545948546,-334.587422,0.00051495,120]
[358926000,1745545948594,-334.587422,0.00051495,120]
[358926001,1745545948643,-175.498221,0.00051495,60]
[358926002,1745545948690,-175.498221,0.00051495,60]
[358926003,1745545948737,-171.668115,0.00051495,120]
[358926004,1745545948785,-171.668115,0.00051495,120]
[358926005,1745545948832,-151.0,0.00051495,120]
[358926006,1745545948879,-151.0,0.000515,120]
[358926007,1745545948926,-156.13228,0.000515,120]
[358926008,1745545948972,-281.11,0.000515,30]
[358926009,1745545949017,-150.0,0.00051505,30]
[358926010,1745545949063,-150.0,0.00051505,30]
[358926011,1745545949109,-203.21276479,0.00051505,30]
[358926012,1745545949155,-960.0,0.00051505,30]
[358926013,1745545949201,-960.0,0.00051505,30]
[358926014,1745545949248,-500.0,0.00051506,30]
[358926015,1745545949294,-500.0,0.00051506,30]
[358926016,1745545949339,-500.0,0.00051506,30]
[358926017,1745545949385,-500.0,0.00051506,30]
[358926018,1745545949432,-1077.87,0.00051506,30]
[358926019,1745545949479,-599.09,0.00051506,30]
[358926020,1745545949527,-535.24,0.00051506,30]
[358926021,1745545949574,-406.45364557,0.00051506,30]
[358926022,1745545949621,-530.1,0.00051506,30]
[358926023,1745545949668,-1653.86,0.00051506,30]
[358926024,1745545949715,-1755.79,0.00051506,30]
[358926025,1745545949765,-606.95,0.00051506,30]
[358926026,1745545950000,-780.2,0.00051506,30]
[358926027,1745545950086,-574.35,0.00051506,30]
[358926028,1745545950137,-500.0,0.00051506,30]
[358926029,1745545950190,-500.0,0.00051506,30]
[358926030,1745545950242,-500.0,0.00051506,30]
[358926031,1745545950291,-583.66,0.00051506,120]
[358926032,1745545950338,-1414.99,0.00051506,30]
[358926033,1745545950385,-500.0,0.00051506,30]
[358926034,1745545950433,-500.0,0.00051506,30]
[358926035,1745545950481,-500.0,0.00051506,30]
[358926036,1745545950528,-500.0,0.00051506,30]
[358926037,1745545950575,-500.0,0.00051506,30]
[358926038,1745545950622,-1156.26,0.00051506,30]
[358926039,1745545950670,-500.0,0.00051506,30]
[358926040,1745545950721,-500.0,0.00051506,30]
[358926041,1745545950771,-821.73,0.00051506,30]
[358926042,1745545950820,-809.65,0.00051506,30]
[358926043,1745545950869,-500.0,0.00051506,30]
[358926044,1745545950917,-500.0,0.00051506,30]
[358926045,1745545950965,-1231.82,0.00051506,30]
[358926046,1745545951013,-500.0,0.00051506,30]
[358926047,1745545951061,-1214.56,0.00051506,30]
[358926048,1745545951112,-500.0,0.00051506,30]
[358926049,1745545951169,-500.0,0.00051506,30]
[358926050,1745545951223,-3096.48,0.00051506,30]
[358926051,1745545951272,-528.4,0.00051506,30]
[358926052,1745545951319,-500.0,0.00051506,30]
[358926053,1745545951368,-5076.34,0.00051506,30]
[358926054,1745545951419,-3017.9,0.00051506,30]
[358926055,1745545951468,-500.0,0.00051506,30]
[358926056,1745545951516,-1363.63,0.00051506,30]
[358926057,1745545951563,-572.21,0.00051506,30]
[358926058,1745545951608,-500.0,0.00051506,30]
[358926059,1745545951654,-576.95,0.00051506,30]
[358926060,1745545951700,-500.0,0.00051506,30]
[358926061,1745545951746,-500.0,0.00051506,30]
[358926062,1745545951792,-500.0,0.00051506,30]
[358926063,1745545951837,-500.0,0.00051506,30]
[358926064,1745545951883,-982.6,0.00051506,30]
[358926065,1745545951931,-730.82,0.00051506,30]
[358926066,1745545951980,-1137.61,0.00051506,30]
[358926067,1745545952028,-500.0,0.00051506,30]
[358926068,1745545952077,-500.0,0.00051506,30]
[358926069,1745545952124,-1311.98,0.00051506,30]
[358926070,1745545952170,-630.52166024,0.00051506,30]
[358926071,1745545952218,-500.0,0.00051506,30]
[358926072,1745545952272,-500.0,0.00051506,30]
[358926073,1745545952323,-1055.72,0.00051506,30]
[358926074,1745545952372,-500.0,0.00051506,30]
[358926075,1745545952423,-500.0,0.00051506,30]
[358926076,1745545952473,-1396.8,0.00051506,30]
[358926077,1745545952521,-503.83,0.00051506,30]
[358926078,1745545952569,-500.0,0.00051506,30]
[358926079,1745545952617,-871.91,0.00051506,30]
[358926080,1745545952667,-1269.73,0.00051506,30]
[358926081,1745545952715,-1618.3,0.00051506,30]
[358926082,1745545952762,-1638.07,0.00051506,30]
[358926083,1745545952810,-703.28,0.00051506,30]
[358926084,1745545952857,-1425.46,0.00051506,30]
[358926085,1745545952906,-638.66,0.00051506,30]
[358926086,1745545952955,-1729.94,0.00051506,30]
[358926087,1745545953003,-500.0,0.00051506,30]
[358926088,1745545953052,-561.61,0.00051506,30]
[358926089,1745545953103,-950.46,0.00051506,30]
[358926090,1745545953157,-500.0,0.00051506,30]
[358926091,1745545953211,-1212.18,0.00051506,30]
[358926092,1745545953264,-1343.3,0.00051506,30]
[358926093,1745545953316,-571.58,0.00051506,30]
[358926094,1745545953369,-855.98,0.00051506,30]
[358926095,1745545953423,-603.73,0.00051506,30]
[358926096,1745545953477,-2120.78,0.00051506,30]
[358926097,1745545953531,-1895.22,0.00051506,30]
[358926098,1745545953586,-500.0,0.00051506,30]
[358926099,1745545953644,-1806.09,0.00051506,30]
[358926100,1745545953701,-500.0,0.00051506,30]
[358926101,1745545953759,-530.66,0.00051506,30]
[358926102,1745545953816,-589.81910074,0.00051506,30]
[358926103,1745545953872,-1185.38,0.00051506,30]
[358926104,1745545953926,-4344.84,0.00051506,30]
[358926105,1745545953979,-1235.46,0.00051506,30]
[358926106,1745545954030,-718.37,0.00051506,30]
[358926107,1745545954082,-681.27,0.00051506,30]
[358926108,1745545954132,-547.91,0.00051506,30]
[358926109,1745545954184,-536.61,0.00051506,30]
[358926110,1745545954235,-1064.4,0.00051506,30]
[358926111,1745545954285,-959.99,0.00051506,30]
[358926112,1745545954337,-956.25,0.00051506,30]
[358926113,1745545954388,-606.43,0.00051506,30]
[358926114,1745545954442,-4110.61,0.00051506,30]
[358926115,1745545954496,-755.51,0.00051506,30]
[358926116,1745545954549,-500.0,0.00051506,30]
[358926117,1745545954602,-1699.47,0.00051506,30]
[358926118,1745545954654,-751.49,0.00051506,30]
[358926119,1745545954705,-557.16,0.00051506,30]
[358926120,1745545954756,-257.001103,0.00051506,120]
[358926121,1745545954807,-2518.36,0.00051506,30]
[358926122,1745545954856,-257.001103,0.00051506,120]
[358926123,1745545954907,-1672.29,0.00051506,30]
[358926124,1745545954957,-500.0,0.00051506,30]
[358926125,1745545955008,-1749.57,0.00051506,30]
[358926126,1745545955061,-621.43032179,0.00051506,30]
[358926127,1745545955113,-637.35,0.00051506,30]
[358926128,1745545955162,-500.0,0.00051506,30]
[358926129,1745545955218,-1031.46,0.00051506,30]
[358926130,1745545955269,-1188.42,0.00051506,30]
[358926131,1745545955504,-1886.1,0.00051506,30]
[358926132,1745545955560,-500.0,0.00051506,30]
[358926133,1745545955614,-565.55,0.00051506,30]
[358926134,1745545955664,-1760.17,0.00051506,30]
[358926135,1745545955715,-500.0,0.00051506,30]
[358926136,1745545955763,-583.6,0.00051506,30]
[358926137,1745545955809,-1331.75,0.00051506,30]
[358926138,1745545955858,-259.7,0.00051506,30]
[358926139,1745545955907,-1291.79,0.00051506,30]
[358926140,1745545955954,-1098.22,0.00051506,30]
[358926141,1745545956004,-7163.15,0.00051506,30]
[358926142,1745545956054,-887.54,0.00051506,30]
[358926143,1745545956107,-1248.48,0.00051506,30]
[358926144,1745545956155,-500.0,0.00051506,30]
[358926145,1745545956210,-1651.06,0.00051506,30]
[358926146,1745545956261,-508.52,0.00051506,30]
[358926147,1745545956312,-2239.84,0.00051506,30]
[358926148,1745545956361,-200.0,0.00051506,30]
[358926149,1745545956411,-152.8170618,0.00051506,30]
[358926150,1745545956462,-207.4,0.00051506,30]
[358926151,1745545956514,-215.0738,0.00051506,30]
[358926152,1745545956564,-864.33,0.00051506,30]
[358926153,1745545956613,-223.0315306,0.00051506,30]
[358926154,1745545956662,-231.28369723,0.00051506,30]
[358926155,1745545956712,-239.84119403,0.00051506,30]
[358926156,1745545956761,-248.71531821,0.00051506,30]
[358926157,1745545956813,-257.91778498,0.00051506,30]
[358926158,1745545956864,-632.89,0.00051506,30]
[358926159,1745545956913,-1001.68,0.00051506,30]
[358926160,1745545956962,-267.46074303,0.00051506,30]
[358926161,1745545957008,-277.35679052,0.00051506,30]
[358926162,1745545957053,-287.61899177,0.00051506,30]
[358926163,1745545957098,-298.26089446,0.00051506,30]
[358926164,1745545957144,-505.78,0.00051506,30]
[358926165,1745545957189,-309.29654756,0.00051506,30]
[358926166,1745545957234,-320.74051982,0.00051506,30]
[358926167,1745545957281,-332.60791905,0.00051506,30]
[358926168,1745545957323,-344.91441206,0.00051506,30]
[358926169,1745545957366,-1483.77,0.00051506,30]
[358926170,1745545957412,-357.6762453,0.00051506,30]
[358926171,1745545957457,-500.0,0.00051506,30]
[358926172,1745545957503,-370.91026638,0.00051506,30]
[358926173,1745545957547,-384.63394623,0.00051506,30]
[358926174,1745545957592,-1236.74,0.00051506,30]
[358926175,1745545957636,-398.86540225,0.00051506,30]
[358926176,1745545957680,-547.04,0.00051506,30]
[358926177,1745545957724,-551.27,0.00051506,30]
[358926178,1745545957769,-782.79,0.00051506,30]
[358926179,1745545957814,-500.0,0.00051506,30]